[Event "*** Titled Tuesday Blitz"]
[Site "Chess.com"]
[Date "2019.09.03"]
[Round "3"]
[White "GasconJR"]
[Black "champ2005"]
[Result "0-1"]
[WhiteElo "2485"]
[BlackElo "2854"]
[TimeControl "180+2"]
[EndTime "15:37:46 PDT"]
[Termination "champ2005 won by resignation"]

1. d4 {[%clk 0:03:01.9]} 1... Nf6 {[%clk 0:02:59.6]} 2. Nf3 {[%clk 0:03:02]}
2... e6 {[%clk 0:03:00.1]} 3. e3 {[%clk 0:03:02.1]} 3... c5 {[%clk 0:02:57]} 4.
Bd3 {[%clk 0:03:02.6]} 4... d5 {[%clk 0:02:58.1]} 5. O-O {[%clk 0:03:03.2]} 5...
Nc6 {[%clk 0:02:58.7]} 6. c3 {[%clk 0:03:04.6]} 6... Bd6 {[%clk 0:02:58.9]} 7.
Nbd2 {[%clk 0:03:05]} 7... O-O {[%clk 0:02:58.7]} 8. dxc5 {[%clk 0:03:05.8]}
8... Bxc5 {[%clk 0:02:59.3]} 9. b4 {[%clk 0:03:07.3]} 9... Bd6 {[%clk
0:02:59.7]} 10. a3 {[%clk 0:02:53.9]} 10... e5 {[%clk 0:02:59]} 11. e4 {[%clk
0:02:55.4]} 11... Bg4 {[%clk 0:02:49.4]} 12. h3 {[%clk 0:02:54.9]} 12... Bh5
{[%clk 0:02:49.2]} 13. c4 {[%clk 0:01:26.5]} 13... dxc4 {[%clk 0:02:31.1]} 14.
Bxc4 {[%clk 0:01:22.2]} 14... Nd4 {[%clk 0:02:23.6]} 15. Re1 {[%clk 0:01:18.3]}
15... Rc8 {[%clk 0:02:12.1]} 16. Bd3 {[%clk 0:00:28.1]} 16... Rc3 {[%clk
0:02:05.7]} 17. Re3 {[%clk 0:00:28.4]} 17... Bb8 {[%clk 0:01:09.5]} 18. Bb2
{[%clk 0:00:29.2]} 18... Rc8 {[%clk 0:01:08.7]} 19. Bxd4 {[%clk 0:00:29.8]}
19... exd4 {[%clk 0:01:09.5]} 20. Re1 {[%clk 0:00:30.6]} 20... Bf4 {[%clk
0:01:10.6]} 21. Nf1 {[%clk 0:00:18.7]} 21... Rc3 {[%clk 0:01:07.5]} 22. g3
{[%clk 0:00:19.3]} 22... Bb8 {[%clk 0:01:02.9]} 23. e5 {[%clk 0:00:16.9]} 23...
Nd5 {[%clk 0:00:55]} 24. g4 {[%clk 0:00:18]} 24... Nf4 {[%clk 0:00:55]} 25. gxh5
{[%clk 0:00:11.8]} 25... Rxd3 {[%clk 0:00:54.5]} 26. N1d2 {[%clk 0:00:07.2]}
26... Qd7 {[%clk 0:00:51.5]} 27. Re4 {[%clk 0:00:07.9]} 27... Qf5 {[%clk
0:00:37.2]} 28. Qf1 {[%clk 0:00:07.1]} 28... Nxh3+ {[%clk 0:00:35.6]} 29. Kg2
{[%clk 0:00:08.2]} 29... Rxf3 {[%clk 0:00:26.8]} 30. Nxf3 {[%clk 0:00:07.5]}
30... Qxe4 {[%clk 0:00:27.7]} 31. Re1 {[%clk 0:00:06.3]} 31... Qg4+ {[%clk
0:00:25.7]} 32. Kh2 {[%clk 0:00:06.5]} 32... Qxf3 {[%clk 0:00:26.9]} 0-1

[Event "*** Titled Tuesday Blitz"]
[Site "Chess.com"]
[Date "2019.09.03"]
[Round "3"]
[White "tonyq11"]
[Black "Th3ChessViking"]
[Result "0-1"]
[WhiteElo "2194"]
[BlackElo "2452"]
[TimeControl "180+2"]
[EndTime "15:37:47 PDT"]
[Termination "Th3ChessViking won by checkmate"]

1. d4 {[%clk 0:03:01.9]} 1... Nf6 {[%clk 0:02:57.8]} 2. c4 {[%clk 0:03:03]} 2...
c5 {[%clk 0:02:58.1]} 3. Nf3 {[%clk 0:03:02.6]} 3... e6 {[%clk 0:02:56.1]} 4.
Nc3 {[%clk 0:02:59.6]} 4... cxd4 {[%clk 0:02:43.1]} 5. Nxd4 {[%clk 0:03:00.5]}
5... a6 {[%clk 0:02:43.3]} 6. g3 {[%clk 0:02:54.5]} 6... Be7 {[%clk 0:02:20.8]}
7. Bg2 {[%clk 0:02:55]} 7... O-O {[%clk 0:02:22.7]} 8. O-O {[%clk 0:02:55.9]}
8... Qc7 {[%clk 0:02:22.6]} 9. b3 {[%clk 0:02:55.1]} 9... d5 {[%clk 0:02:18.8]}
10. Bb2 {[%clk 0:02:40.4]} 10... dxc4 {[%clk 0:02:19.3]} 11. Rc1 {[%clk
0:02:41]} 11... Rd8 {[%clk 0:02:20.8]} 12. bxc4 {[%clk 0:02:30.2]} 12... e5
{[%clk 0:02:19.5]} 13. Nd5 {[%clk 0:02:28.6]} 13... Nxd5 {[%clk 0:02:19.3]} 14.
cxd5 {[%clk 0:02:29.6]} 14... Qb6 {[%clk 0:02:20.4]} 15. Nb3 {[%clk 0:02:25.1]}
15... Nd7 {[%clk 0:02:15.8]} 16. Qd2 {[%clk 0:01:59.2]} 16... Bd6 {[%clk
0:02:01.8]} 17. Rfd1 {[%clk 0:01:56.7]} 17... Nf8 {[%clk 0:01:49.6]} 18. Bc3
{[%clk 0:01:55.2]} 18... Qb5 {[%clk 0:01:43]} 19. e4 {[%clk 0:01:45]} 19... Bg4
{[%clk 0:01:38.1]} 20. Bf1 {[%clk 0:01:37.7]} 20... Qa4 {[%clk 0:01:37.6]} 21.
Re1 {[%clk 0:01:34.7]} 21... Rac8 {[%clk 0:01:29.9]} 22. h3 {[%clk 0:00:58]}
22... Bd7 {[%clk 0:01:24.2]} 23. f4 {[%clk 0:00:55.5]} 23... exf4 {[%clk
0:00:45.4]} 24. gxf4 {[%clk 0:00:51.2]} 24... Rxc3 {[%clk 0:00:46]} 25. Rxc3
{[%clk 0:00:45.3]} 25... Bb4 {[%clk 0:00:46.9]} 26. Qc2 {[%clk 0:00:19.3]} 26...
Bxc3 {[%clk 0:00:39.8]} 27. Qxc3 {[%clk 0:00:21.2]} 27... Rc8 {[%clk 0:00:39.2]}
28. Qd4 {[%clk 0:00:11.3]} 28... Qxa2 {[%clk 0:00:33.3]} 29. Nc5 {[%clk
0:00:12.4]} 29... Qa5 {[%clk 0:00:33]} 30. Nxd7 {[%clk 0:00:11.5]} 30... Qxe1
{[%clk 0:00:31.2]} 31. Nxf8 {[%clk 0:00:10.2]} 31... Qg3+ {[%clk 0:00:31.8]} 32.
Kh1 {[%clk 0:00:10.2]} 32... Qf3+ {[%clk 0:00:28.1]} 33. Bg2 {[%clk 0:00:10.3]}
33... Rc1+ {[%clk 0:00:26.6]} 34. Kh2 {[%clk 0:00:11.3]} 34... Qxf4# {[%clk
0:00:27.9]} 0-1

[Event "*** Titled Tuesday Blitz"]
[Site "Chess.com"]
[Date "2019.09.03"]
[Round "3"]
[White "ZeroRealtorFade"]
[Black "nocnypako"]
[Result "0-1"]
[WhiteElo "2360"]
[BlackElo "2591"]
[TimeControl "180+2"]
[EndTime "15:37:51 PDT"]
[Termination "nocnypako won on time"]

1. d4 {[%clk 0:02:59.2]} 1... Nf6 {[%clk 0:02:59]} 2. Bf4 {[%clk 0:02:59.6]}
2... g6 {[%clk 0:02:58.3]} 3. e3 {[%clk 0:03:00.3]} 3... Bg7 {[%clk 0:02:57.1]}
4. Nf3 {[%clk 0:03:01.2]} 4... d6 {[%clk 0:02:58.7]} 5. h3 {[%clk 0:03:02.2]}
5... O-O {[%clk 0:03:00]} 6. c3 {[%clk 0:03:03.2]} 6... Nbd7 {[%clk 0:03:00.9]}
7. Nbd2 {[%clk 0:03:03.8]} 7... Re8 {[%clk 0:02:59.7]} 8. Bh2 {[%clk 0:02:34.5]}
8... b6 {[%clk 0:02:53.8]} 9. Be2 {[%clk 0:02:34.1]} 9... Bb7 {[%clk 0:02:54.3]}
10. O-O {[%clk 0:02:34.6]} 10... e5 {[%clk 0:02:35.2]} 11. dxe5 {[%clk
0:02:17.4]} 11... dxe5 {[%clk 0:02:37.1]} 12. Qc2 {[%clk 0:02:01.9]} 12... Qe7
{[%clk 0:02:24.7]} 13. Bb5 {[%clk 0:01:50.8]} 13... a6 {[%clk 0:02:17]} 14. Ba4
{[%clk 0:01:47.1]} 14... b5 {[%clk 0:02:16.5]} 15. Bb3 {[%clk 0:01:47.5]} 15...
c5 {[%clk 0:01:46.4]} 16. a3 {[%clk 0:01:25.1]} 16... c4 {[%clk 0:01:45.4]} 17.
Ba2 {[%clk 0:01:25.9]} 17... e4 {[%clk 0:01:45]} 18. Nd4 {[%clk 0:01:25]} 18...
Nc5 {[%clk 0:01:38.3]} 19. Rad1 {[%clk 0:01:22.2]} 19... Rac8 {[%clk 0:01:36.9]}
20. Bb1 {[%clk 0:01:19.8]} 20... Nd3 {[%clk 0:01:29.8]} 21. a4 {[%clk
0:00:55.1]} 21... Qc5 {[%clk 0:01:30.1]} 22. b4 {[%clk 0:00:42]} 22... Qb6
{[%clk 0:01:09.3]} 23. a5 {[%clk 0:00:37.9]} 23... Qd8 {[%clk 0:00:59.8]} 24.
Qa2 {[%clk 0:00:28.9]} 24... Qe7 {[%clk 0:00:57.6]} 25. Bxd3 {[%clk 0:00:25.6]}
25... exd3 {[%clk 0:00:59.5]} 26. Rde1 {[%clk 0:00:22.2]} 26... Nd5 {[%clk
0:00:52.1]} 27. Qb2 {[%clk 0:00:20.5]} 27... Bxd4 {[%clk 0:00:48.3]} 28. exd4
{[%clk 0:00:13.6]} 28... Qxe1 {[%clk 0:00:48.2]} 29. Rxe1 {[%clk 0:00:14.7]}
29... Rxe1+ {[%clk 0:00:48.3]} 30. Nf1 {[%clk 0:00:16.1]} 30... Rce8 {[%clk
0:00:47.5]} 31. Qd2 {[%clk 0:00:04]} 31... R1e2 {[%clk 0:00:35.3]} 32. Qg5
{[%clk 0:00:02.7]} 32... f6 {[%clk 0:00:28.8]} 0-1

[Event "*** Titled Tuesday Blitz"]
[Site "Chess.com"]
[Date "2019.09.03"]
[Round "3"]
[White "Gubajdullin"]
[Black "JMatias"]
[Result "1-0"]
[WhiteElo "2613"]
[BlackElo "2381"]
[TimeControl "180+2"]
[EndTime "15:37:56 PDT"]
[Termination "Gubajdullin won by checkmate"]

1. d4 {[%clk 0:03:01.9]} 1... d6 {[%clk 0:02:58.8]} 2. Bf4 {[%clk 0:03:01.8]}
2... g6 {[%clk 0:02:59.4]} 3. Nf3 {[%clk 0:03:01.7]} 3... Bg7 {[%clk 0:03:00.1]}
4. e3 {[%clk 0:02:58.8]} 4... Nc6 {[%clk 0:02:56.2]} 5. Bc4 {[%clk 0:02:57.1]}
5... Nf6 {[%clk 0:02:48]} 6. d5 {[%clk 0:02:52.9]} 6... Na5 {[%clk 0:02:35.2]}
7. Bb5+ {[%clk 0:02:52.6]} 7... c6 {[%clk 0:02:35.9]} 8. dxc6 {[%clk 0:02:53.1]}
8... bxc6 {[%clk 0:02:34.2]} 9. Be2 {[%clk 0:02:53.2]} 9... Nh5 {[%clk
0:02:26.2]} 10. c3 {[%clk 0:02:50.8]} 10... Nxf4 {[%clk 0:02:26.6]} 11. exf4
{[%clk 0:02:50.2]} 11... O-O {[%clk 0:02:27.5]} 12. O-O {[%clk 0:02:50.4]} 12...
c5 {[%clk 0:02:25.6]} 13. Na3 {[%clk 0:02:49.4]} 13... Rb8 {[%clk 0:02:25.6]}
14. Qd2 {[%clk 0:02:49.3]} 14... Qc7 {[%clk 0:02:15.8]} 15. Rfe1 {[%clk
0:02:48.7]} 15... Rd8 {[%clk 0:02:05.2]} 16. Bf1 {[%clk 0:02:48.9]} 16... Bb7
{[%clk 0:02:00.1]} 17. Ng5 {[%clk 0:02:47.5]} 17... h6 {[%clk 0:01:53.5]} 18.
Ne4 {[%clk 0:02:47.5]} 18... Ba8 {[%clk 0:01:48.1]} 19. Ng3 {[%clk 0:02:47.9]}
19... e6 {[%clk 0:01:46.2]} 20. h4 {[%clk 0:02:43.8]} 20... h5 {[%clk
0:01:46.6]} 21. Ne4 {[%clk 0:02:44.5]} 21... Rb6 {[%clk 0:01:31.4]} 22. Ng5
{[%clk 0:02:43.3]} 22... Rdb8 {[%clk 0:01:28]} 23. Rab1 {[%clk 0:02:43.9]} 23...
Bd5 {[%clk 0:01:25.5]} 24. c4 {[%clk 0:02:40.6]} 24... Bc6 {[%clk 0:01:25]} 25.
Qxa5 {[%clk 0:02:35.6]} 25... Qb7 {[%clk 0:01:16.4]} 26. Qd2 {[%clk 0:02:16.6]}
26... Bxb2 {[%clk 0:01:14.8]} 27. Nb5 {[%clk 0:02:13.4]} 27... Bxb5 {[%clk
0:01:13.7]} 28. cxb5 {[%clk 0:02:13.8]} 28... Bd4 {[%clk 0:01:12.4]} 29. a4
{[%clk 0:02:10.3]} 29... Qe7 {[%clk 0:01:05.9]} 30. a5 {[%clk 0:02:09.6]} 30...
R6b7 {[%clk 0:01:07.1]} 31. f5 {[%clk 0:02:01.5]} 31... gxf5 {[%clk 0:01:02.8]}
32. Qd1 {[%clk 0:02:01.7]} 32... Kg7 {[%clk 0:00:58.3]} 33. Qxh5 {[%clk
0:01:53.4]} 33... Rh8 {[%clk 0:00:58.9]} 34. Qf3 {[%clk 0:01:47.4]} 34... Rxh4
{[%clk 0:00:59.5]} 35. Nh3 {[%clk 0:01:45.2]} 35... Rb8 {[%clk 0:00:49.2]} 36.
b6 {[%clk 0:01:45.3]} 36... axb6 {[%clk 0:00:49.9]} 37. Rxb6 {[%clk 0:01:44.8]}
37... Rbh8 {[%clk 0:00:49.6]} 38. Qxf5 {[%clk 0:01:42.2]} 38... Bc3 {[%clk
0:00:36.3]} 39. Re3 {[%clk 0:01:38.3]} 39... Bxa5 {[%clk 0:00:12.7]} 40. Rg3+
{[%clk 0:01:37.1]} 40... Kh6 {[%clk 0:00:14.2]} 41. Rb7 {[%clk 0:00:56.4]} 41...
Bc7 {[%clk 0:00:08.9]} 42. Rxc7 {[%clk 0:00:55.7]} 42... Qxc7 {[%clk 0:00:09.2]}
43. Qf6+ {[%clk 0:00:55.5]} 43... Kh5 {[%clk 0:00:10.6]} 44. Qg5# {[%clk
0:00:55.9]} 1-0

[Event "*** Titled Tuesday Blitz"]
[Site "Chess.com"]
[Date "2019.09.03"]
[Round "3"]
[White "TreabharMakernes"]
[Black "GianmarcoVaR"]
[Result "0-1"]
[WhiteElo "2355"]
[BlackElo "2583"]
[TimeControl "180+2"]
[EndTime "15:37:59 PDT"]
[Termination "GianmarcoVaR won by resignation"]

1. e4 {[%clk 0:03:01.9]} 1... c5 {[%clk 0:01:45.3]} 2. Nf3 {[%clk 0:03:00.2]}
2... d6 {[%clk 0:01:46.8]} 3. d4 {[%clk 0:02:59.6]} 3... cxd4 {[%clk 0:01:48.7]}
4. Nxd4 {[%clk 0:02:59.7]} 4... Nf6 {[%clk 0:01:50.1]} 5. Nc3 {[%clk 0:02:59.8]}
5... a6 {[%clk 0:01:51.6]} 6. Be3 {[%clk 0:02:59.8]} 6... e5 {[%clk 0:01:52.7]}
7. Nb3 {[%clk 0:02:59.3]} 7... Be6 {[%clk 0:01:54.2]} 8. f3 {[%clk 0:02:58.9]}
8... Nbd7 {[%clk 0:01:55.5]} 9. Qd2 {[%clk 0:02:58.8]} 9... b5 {[%clk
0:01:56.2]} 10. O-O-O {[%clk 0:02:56.1]} 10... Be7 {[%clk 0:01:57.3]} 11. g4
{[%clk 0:02:55.6]} 11... b4 {[%clk 0:01:58.9]} 12. Nd5 {[%clk 0:02:54.5]} 12...
Bxd5 {[%clk 0:02:00.3]} 13. exd5 {[%clk 0:02:54.4]} 13... Nb6 {[%clk 0:02:02.2]}
14. Bxb6 {[%clk 0:02:45.8]} 14... Qxb6 {[%clk 0:02:02.5]} 15. Kb1 {[%clk
0:02:21.1]} 15... a5 {[%clk 0:02:00.3]} 16. Qd3 {[%clk 0:02:18.5]} 16... O-O
{[%clk 0:01:58.2]} 17. Nd2 {[%clk 0:02:16.5]} 17... a4 {[%clk 0:01:49.3]} 18. g5
{[%clk 0:01:59.6]} 18... Nh5 {[%clk 0:01:45.7]} 19. Nc4 {[%clk 0:01:42.9]} 19...
Qb7 {[%clk 0:01:08.1]} 20. Rg1 {[%clk 0:01:24.4]} 20... Rfc8 {[%clk 0:01:02.1]}
21. Bh3 {[%clk 0:01:08.3]} 21... Rc5 {[%clk 0:01:02.3]} 22. Qe4 {[%clk
0:00:55.7]} 22... Nf4 {[%clk 0:00:55.3]} 23. Bf1 {[%clk 0:00:44.7]} 23... a3
{[%clk 0:00:48.6]} 24. b3 {[%clk 0:00:42.6]} 24... Rxd5 {[%clk 0:00:25.9]} 25.
Bd3 {[%clk 0:00:18.9]} 25... g6 {[%clk 0:00:19.3]} 26. h4 {[%clk 0:00:18]} 26...
Qa7 {[%clk 0:00:19.1]} 27. h5 {[%clk 0:00:17.2]} 27... Rd4 {[%clk 0:00:20.4]}
28. Qe3 {[%clk 0:00:15.6]} 28... Nxh5 {[%clk 0:00:13.5]} 29. Rh1 {[%clk
0:00:12.4]} 29... Qc5 {[%clk 0:00:09.4]} 30. Rxh5 {[%clk 0:00:13.1]} 30... Rxc4
{[%clk 0:00:10]} 31. Qxc5 {[%clk 0:00:12.5]} 31... Rxc5 {[%clk 0:00:11]} 32. Rh3
{[%clk 0:00:11.9]} 32... Bxg5 {[%clk 0:00:12.1]} 33. Be4 {[%clk 0:00:11]} 33...
Ra6 {[%clk 0:00:12.3]} 34. Bd5 {[%clk 0:00:09.4]} 34... h6 {[%clk 0:00:12.3]}
35. Rd4 {[%clk 0:00:07.6]} 0-1

[Event "*** Titled Tuesday Blitz"]
[Site "Chess.com"]
[Date "2019.09.03"]
[Round "3"]
[White "johnathan113"]
[Black "SirMittensofMittensville"]
[Result "1-0"]
[WhiteElo "2769"]
[BlackElo "2532"]
[TimeControl "180+2"]
[EndTime "15:38:04 PDT"]
[Termination "johnathan113 won by resignation"]

1. e4 {[%clk 0:03:01.9]} 1... e5 {[%clk 0:03:01.1]} 2. Nf3 {[%clk 0:03:02.8]}
2... Nc6 {[%clk 0:03:02.7]} 3. d4 {[%clk 0:03:04.3]} 3... exd4 {[%clk
0:03:03.3]} 4. Nxd4 {[%clk 0:03:06.2]} 4... Bb4+ {[%clk 0:03:04.1]} 5. c3 {[%clk
0:03:06.9]} 5... Bc5 {[%clk 0:03:05.7]} 6. Be3 {[%clk 0:03:06.3]} 6... Bb6
{[%clk 0:03:07.3]} 7. Nf5 {[%clk 0:03:07.2]} 7... Bxe3 {[%clk 0:03:07.8]} 8.
Nxe3 {[%clk 0:03:09.1]} 8... Nf6 {[%clk 0:03:09.3]} 9. f3 {[%clk 0:03:09.5]}
9... O-O {[%clk 0:03:11.2]} 10. c4 {[%clk 0:03:10.2]} 10... d6 {[%clk
0:03:13.1]} 11. Nc3 {[%clk 0:03:10.8]} 11... Nd7 {[%clk 0:03:15]} 12. Qd2 {[%clk
0:03:09.1]} 12... Nc5 {[%clk 0:03:16.3]} 13. Be2 {[%clk 0:02:52.1]} 13... f5
{[%clk 0:03:17.3]} 14. exf5 {[%clk 0:02:50.2]} 14... Bxf5 {[%clk 0:03:19.2]} 15.
O-O {[%clk 0:02:47.7]} 15... Bg6 {[%clk 0:03:16.7]} 16. f4 {[%clk 0:02:39.3]}
16... Qd7 {[%clk 0:03:17.2]} 17. Bg4 {[%clk 0:02:34.9]} 17... Qd8 {[%clk
0:03:02.2]} 18. b3 {[%clk 0:02:11.9]} 18... Kh8 {[%clk 0:03:02.6]} 19. f5 {[%clk
0:02:10]} 19... Bf7 {[%clk 0:03:02]} 20. Ned5 {[%clk 0:02:11.5]} 20... Ne5
{[%clk 0:03:00.2]} 21. Bh3 {[%clk 0:02:12.8]} 21... c6 {[%clk 0:02:36.2]} 22.
Nf4 {[%clk 0:02:12.7]} 22... Qe7 {[%clk 0:02:11.7]} 23. Rad1 {[%clk 0:02:11.7]}
23... Rad8 {[%clk 0:02:13.2]} 24. Kh1 {[%clk 0:01:59.8]} 24... a5 {[%clk
0:02:03]} 25. Qe2 {[%clk 0:01:48.4]} 25... Qg5 {[%clk 0:01:57.2]} 26. Rxd6
{[%clk 0:01:27.4]} 26... Rxd6 {[%clk 0:01:38]} 27. Qxe5 {[%clk 0:01:28.1]} 27...
Qh6 {[%clk 0:00:34]} 28. Qxc5 {[%clk 0:01:27.7]} 28... Rfd8 {[%clk 0:00:35.6]}
29. Ne6 {[%clk 0:01:20.1]} 29... R8d7 {[%clk 0:00:25.1]} 30. Nf8 {[%clk
0:01:04.2]} 30... Rd8 {[%clk 0:00:19.3]} 31. Ne6 {[%clk 0:01:05.5]} 31... R8d7
{[%clk 0:00:20]} 32. Bg4 {[%clk 0:01:02.9]} 32... Qh4 {[%clk 0:00:13.7]} 33. h3
{[%clk 0:01:03.3]} 33... Qg3 {[%clk 0:00:13.7]} 34. Ne4 {[%clk 0:00:59.5]} 34...
Qd3 {[%clk 0:00:15.2]} 35. Re1 {[%clk 0:00:54.1]} 35... b6 {[%clk 0:00:11.6]}
36. Qxb6 {[%clk 0:00:49.2]} 36... h5 {[%clk 0:00:13.1]} 37. Nxd6 {[%clk
0:00:44.9]} 37... hxg4 {[%clk 0:00:11.6]} 38. Nxf7+ {[%clk 0:00:45.7]} 38...
Rxf7 {[%clk 0:00:13.3]} 39. Qb8+ {[%clk 0:00:43.9]} 39... Kh7 {[%clk 0:00:14.3]}
40. Ng5+ {[%clk 0:00:44.5]} 1-0

[Event "*** Titled Tuesday Blitz"]
[Site "Chess.com"]
[Date "2019.09.03"]
[Round "3"]
[White "Vasily_Papin"]
[Black "jorquerino"]
[Result "1-0"]
[WhiteElo "2579"]
[BlackElo "2300"]
[TimeControl "180+2"]
[EndTime "15:38:05 PDT"]
[Termination "Vasily_Papin won on time"]

1. c4 {[%clk 0:03:01]} 1... Nf6 {[%clk 0:02:58.9]} 2. g3 {[%clk 0:03:02]} 2...
e6 {[%clk 0:02:59.2]} 3. Bg2 {[%clk 0:03:03.4]} 3... d5 {[%clk 0:02:52.8]} 4.
Nf3 {[%clk 0:03:05.3]} 4... c5 {[%clk 0:02:50.3]} 5. cxd5 {[%clk 0:03:05.5]}
5... exd5 {[%clk 0:02:50.9]} 6. d4 {[%clk 0:03:06.2]} 6... Nc6 {[%clk
0:02:51.3]} 7. O-O {[%clk 0:03:07]} 7... h6 {[%clk 0:02:43.9]} 8. Nc3 {[%clk
0:03:06.8]} 8... Be6 {[%clk 0:02:39.8]} 9. b3 {[%clk 0:03:07.4]} 9... Be7 {[%clk
0:02:36.8]} 10. Bb2 {[%clk 0:03:08.4]} 10... O-O {[%clk 0:02:37]} 11. Rc1 {[%clk
0:03:09]} 11... Rc8 {[%clk 0:02:35.1]} 12. dxc5 {[%clk 0:03:07.2]} 12... Bxc5
{[%clk 0:02:15.4]} 13. Na4 {[%clk 0:03:08]} 13... Be7 {[%clk 0:02:03.9]} 14. Nc5
{[%clk 0:03:08.4]} 14... b6 {[%clk 0:02:02.6]} 15. Nxe6 {[%clk 0:03:08.5]} 15...
fxe6 {[%clk 0:02:03.9]} 16. Bh3 {[%clk 0:02:51.1]} 16... Qd6 {[%clk 0:02:00.2]}
17. Qd3 {[%clk 0:02:40.7]} 17... Ne4 {[%clk 0:01:51.2]} 18. Rfd1 {[%clk
0:02:33.9]} 18... Rcd8 {[%clk 0:01:22.8]} 19. a3 {[%clk 0:01:37.4]} 19... Bf6
{[%clk 0:01:18.2]} 20. Bxf6 {[%clk 0:01:34]} 20... Rxf6 {[%clk 0:01:13.6]} 21.
b4 {[%clk 0:01:32.9]} 21... Ne5 {[%clk 0:01:01.2]} 22. Qe3 {[%clk 0:01:13.6]}
22... Rdf8 {[%clk 0:00:52.8]} 23. Nxe5 {[%clk 0:01:11.1]} 23... Qxe5 {[%clk
0:00:47.3]} 24. f3 {[%clk 0:01:10.9]} 24... Qh5 {[%clk 0:00:17.8]} 25. Bg4
{[%clk 0:00:50.7]} 25... Qg5 {[%clk 0:00:18.7]} 26. Qxg5 {[%clk 0:00:40]} 26...
Nxg5 {[%clk 0:00:19.1]} 27. Rc7 {[%clk 0:00:30.6]} 27... R8f7 {[%clk 0:00:15]}
28. Rdc1 {[%clk 0:00:31.3]} 28... g6 {[%clk 0:00:14]} 29. h4 {[%clk 0:00:27.9]}
29... Rxc7 {[%clk 0:00:04.7]} 30. Rxc7 {[%clk 0:00:27.9]} 30... Nf7 {[%clk
0:00:03.1]} 31. Rxa7 {[%clk 0:00:20.7]} 31... h5 {[%clk 0:00:04.1]} 32. Bh3
{[%clk 0:00:21.8]} 32... Ne5 {[%clk 0:00:04.7]} 33. Re7 {[%clk 0:00:22.2]} 33...
Nc4 {[%clk 0:00:03.7]} 34. Rxe6 {[%clk 0:00:21.2]} 34... Rxe6 {[%clk 0:00:03.7]}
35. Bxe6+ {[%clk 0:00:23.1]} 35... Kg7 {[%clk 0:00:04.7]} 36. a4 {[%clk
0:00:23]} 1-0

[Event "*** Titled Tuesday Blitz"]
[Site "Chess.com"]
[Date "2019.09.03"]
[Round "3"]
[White "jmduque"]
[Black "chessking2151"]
[Result "0-1"]
[WhiteElo "2390"]
[BlackElo "2628"]
[TimeControl "180+2"]
[EndTime "15:38:10 PDT"]
[Termination "chessking2151 won by checkmate"]

1. e4 {[%clk 0:03:00.5]} 1... e5 {[%clk 0:02:58.7]} 2. Nf3 {[%clk 0:02:58.6]}
2... Nc6 {[%clk 0:03:00.1]} 3. Bc4 {[%clk 0:02:59.5]} 3... Nf6 {[%clk
0:03:00.2]} 4. Ng5 {[%clk 0:03:00.6]} 4... d5 {[%clk 0:03:00.8]} 5. exd5 {[%clk
0:03:02.5]} 5... Na5 {[%clk 0:03:00.7]} 6. Bb5+ {[%clk 0:03:03.9]} 6... c6
{[%clk 0:03:00.2]} 7. dxc6 {[%clk 0:03:05.8]} 7... bxc6 {[%clk 0:03:01.6]} 8.
Be2 {[%clk 0:03:07.7]} 8... h6 {[%clk 0:03:00.7]} 9. Nh3 {[%clk 0:03:08.7]} 9...
Bc5 {[%clk 0:02:29.9]} 10. d3 {[%clk 0:03:07.2]} 10... O-O {[%clk 0:02:29.9]}
11. O-O {[%clk 0:03:05.1]} 11... Bf5 {[%clk 0:02:29.1]} 12. Bf3 {[%clk
0:02:58.3]} 12... Qd7 {[%clk 0:02:28.1]} 13. Kh1 {[%clk 0:02:58.3]} 13... Rfe8
{[%clk 0:02:26.5]} 14. Nd2 {[%clk 0:02:58.5]} 14... Rad8 {[%clk 0:02:26.6]} 15.
a3 {[%clk 0:02:50.8]} 15... Nb7 {[%clk 0:02:11.5]} 16. Ng1 {[%clk 0:02:50.8]}
16... g5 {[%clk 0:01:47.8]} 17. Nb3 {[%clk 0:02:36.7]} 17... Bb6 {[%clk
0:01:44.6]} 18. Be3 {[%clk 0:02:36.5]} 18... Nd5 {[%clk 0:01:30.3]} 19. Bxb6
{[%clk 0:02:32.6]} 19... axb6 {[%clk 0:01:32.2]} 20. Be4 {[%clk 0:02:28.5]}
20... Nd6 {[%clk 0:01:29.2]} 21. Qh5 {[%clk 0:02:23.7]} 21... Nxe4 {[%clk
0:01:24.8]} 22. dxe4 {[%clk 0:02:23.6]} 22... Bxe4 {[%clk 0:01:26.7]} 23. Qxh6
{[%clk 0:02:25]} 23... Re6 {[%clk 0:01:27.9]} 24. Qh5 {[%clk 0:02:20.1]} 24...
Kg7 {[%clk 0:01:20.7]} 25. f3 {[%clk 0:02:18.6]} 25... Bg6 {[%clk 0:01:07.6]}
26. Qxg5 {[%clk 0:02:17.5]} 26... Rh8 {[%clk 0:01:08.3]} 27. Nh3 {[%clk
0:02:10.5]} 27... Ree8 {[%clk 0:00:59.2]} 28. c4 {[%clk 0:02:02.1]} 28... Rh5
{[%clk 0:00:45.8]} 29. Qg3 {[%clk 0:02:01.2]} 29... Ne3 {[%clk 0:00:45.6]} 30.
Rfe1 {[%clk 0:01:53.4]} 30... Nc2 {[%clk 0:00:44.9]} 31. Rad1 {[%clk 0:01:53.9]}
31... Qe6 {[%clk 0:00:44.7]} 32. Re4 {[%clk 0:01:43.4]} 32... Reh8 {[%clk
0:00:33.4]} 33. Rg4 {[%clk 0:01:33.2]} 33... Ne3 {[%clk 0:00:30.9]} 34. Rxg6+
{[%clk 0:01:24.3]} 34... fxg6 {[%clk 0:00:23.4]} 35. Re1 {[%clk 0:01:20.9]}
35... Nxg2 {[%clk 0:00:22.3]} 36. Ng5 {[%clk 0:00:55.6]} 36... Rxh2+ {[%clk
0:00:21.4]} 37. Kg1 {[%clk 0:00:56.6]} 37... Qf6 {[%clk 0:00:17.3]} 38. Qxe5
{[%clk 0:00:47.6]} 38... Qxe5 {[%clk 0:00:13.3]} 39. Rxe5 {[%clk 0:00:47]} 39...
Nf4 {[%clk 0:00:14.8]} 40. Re4 {[%clk 0:00:29.2]} 40... Rg2+ {[%clk 0:00:15]}
41. Kf1 {[%clk 0:00:29.9]} 41... Rh1# {[%clk 0:00:16.9]} 0-1